Cogmind - Beta 14 @@@ ROGUE MODE // 2024.12.02 @ 21:13:40 Player: certified.possum Result: Destroyed by W3-96B(R) with Subdweller Laser Performance ------------- Evolutions (0) 0 Regions Visited (2) 400 Robots Destroyed (21) 105 Value Destroyed (495) 495 Prototype IDs (0) 0 Alien Tech Used (0) 0 Bonus (0) 0 TOTAL SCORE: 1000 Bonus ------- None Cogmind --------- Core Integrity 0/250 Matter 73/300 Energy 100/100 System Corruption 2% Temperature Cool (6) Movement Walking (190) Ox1 Location -10/Subcaves Parts ------- > --- POWER (1) -------- (None) > --- PROPULSION (2) --- Aluminum Leg Aluminum Leg > --- UTILITY (2) ------ Large Storage Unit Targeting Computer > --- WEAPON (2) ------- Makeshift Axe > --- INVENTORY (15) --- Ion Engine Disposable Heat Sink Medium Laser Assault Rifle Shotgun Shotgun Subdweller Machine Gun Grenade Launcher Grenade Launcher Datajack Peak State ------------ > --- POWER ------------ Light Ion Engine > --- PROPULSION ------- Aluminum Leg Aluminum Leg > --- UTILITY ---------- Large Storage Unit Targeting Computer > --- WEAPON ----------- Flamer Makeshift Axe > --- INVENTORY -------- Ion Engine Disposable Heat Sink Medium Laser Assault Rifle Shotgun Shotgun Subdweller Machine Gun Grenade Launcher Grenade Launcher Datajack [Rating: 12] Favorites ----------- Power Light Ion Engine Engine Light Ion Engine Propulsion Aluminum Leg Leg Aluminum Leg Utility Targeting Computer Device Disposable Heat Sink Storage Large Storage Unit Processor Targeting Computer Weapon Grenade Launcher Energy Gun EM Pulse Gun Ballistic Gun Shotgun Launcher Grenade Launcher Special Weapon Flamer Slashing Weapon Makeshift Axe Build | -11 -10 -10 ------- Run | Yrd Mat Sub Slots Evolved . | . . . Power . | . . . Propulsion . | . . . Utility . | . . . Weapon . | . . . Parts Attached 23 | 5 13 5 Power 2 | 1 . 1 Engine 2 | 1 . 1 Core . | . . . Reactor . | . . . Propulsion 3 | 2 . 1 Treads . | . . . Leg 3 | 2 . 1 Wheel . | . . . Hover . | . . . Flight . | . . . Utility 4 | . 4 . Device 1 | . 1 . Storage 2 | . 2 . Processor 1 | . 1 . Hackware . | . . . Protection . | . . . Artifact . | . . . Weapon 14 | 2 9 3 Energy Gun 2 | 1 1 . Energy Cannon . | . . . Ballistic Gun 6 | 1 5 . Ballistic Cannon . | . . . Launcher 4 | . 3 1 Special Weapon 1 | . . 1 Impact Weapon . | . . . Slashing Weapon 1 | . . 1 Piercing Weapon . | . . . Special Melee Weapon . | . . . Unidentified Prototypes . | . . . Parts Lost 5 | . 1 4 Power 2 | . . 2 Propulsion 1 | . . 1 Utility . | . . . Weapon 2 | . 1 1 Highest Loss Streak 2 | . 1 2 To Critical Strikes . | . . . Average Slot Usage (%) 96 | . 95 97 Engine 14 | . 14 14 Leg 27 | . 28 27 Storage 14 | . 14 14 Processor 13 | . 12 14 Energy Gun 5 | . 8 . Ballistic Gun 2 | . 4 . Launcher 14 | . 10 21 Slashing Weapon 1 | . . 4 Peak Build Rating 12 | 5 10 12 Average Rating 8 | 3 7 8 On Entrance 4 | . 5 7 Naked Turns . | . . . Heaviest Build 29 | 7 28 29 Greatest Support 20 | 20 20 20 Greatest Overweight (x) 2 | . 1 2 Average Overweight (x) . | . . 1 Largest Inventory Capacity 15 | 5 15 15 Average Capacity 14 | 5 13 15 Most Carried 10 | 5 10 10 Average Carried 7 | 2 7 8 Final Capacity 15 | 5 15 15 Final Carried 10 | 3 9 10 Class Distribution -------------------- 100% | Mutant Dominant Class ---------------- Mutant | -10/Materials Mutant | -10/Subcaves Resources | -11 -10 -10 ----------- Run | Yrd Mat Sub Matter Collected 637 | 215 212 210 Remotely . | . . . Salvage Created 307 | . 234 73 Parts 23 | . 17 6 Haulers Intercepted . | . . . Recyclers Shooed 2 | . 2 . Parts Field Recycled . | . . . Retrieved Matter . | . . . Parts Self-Destructed 11 | . . 11 Prevented . | . . . Kills | -11 -10 -10 ------- Run | Yrd Mat Sub Combat Hostiles Destroyed 16 | . 10 6 Guns 4 | . 4 . AOE 12 | . 6 6 Classes Destroyed 8 | . 6 2 Worker 2 | . 2 . Recycler 1 | . 1 . Operator 1 | . 1 . Watcher 1 | . 1 . Swarmer 6 | . 6 . Grunt 6 | . 4 2 Sentry 1 | . . 1 Subdweller 3 | . . 3 Best Kill Streak 5 | . 5 3 Combat Bots Only 4 | . 4 3 Max Kills in Single Turn 2 | . 2 1 Gunslinging . | . . . Exploded 2 | . 2 1 Melee . | . . . Uniques/NPCs Destroyed . | . . . Combat | -11 -10 -10 -------- Run | Yrd Mat Sub Hostile Shots Fired 76 | . 40 36 Missed 27 | . 15 12 Damage Taken 807 | . 299 508 Core 261 | . 76 185 Absorbed by Shields . | . . . Regen/Repaired (Parts) 18 | . 18 . Core Remaining (%) 100 | 100 . . Volleys Fired 39 | . 26 13 Largest 2 | . 2 2 Hottest 100 | . 70 100 Shots Fired 64 | . 44 20 Gun 24 | . 24 . Cannon . | . . . Launcher 38 | . 20 18 Special 2 | . . 2 Kinetic 8 | . 8 . Thermal 2 | . . 2 Explosive 38 | . 20 18 Electromagnetic 16 | . 16 . Robot Hit Streak 4 | . 2 4 Robot Miss Streak 3 | . 3 1 Penetration Max . | . . . Secondary Targets . | . . . Shots Hit Robots 23 | . 16 7 Core Hits 37 | . 23 14 Critical Kills . | . . . Critical Parts Destroyed . | . . . Critical Strikes . | . . . Melee Attacks 3 | . . 3 Impact . | . . . Slashing 3 | . . 3 Piercing . | . . . Sneak Attacks . | . . . Combat Hostiles . | . . . Follow-up Attacks . | . . . Damage Inflicted 1802 | . 1070 732 Guns 188 | . 188 . Cannons . | . . . Explosions 1547 | . 882 665 Melee 44 | . . 44 Ramming . | . . . Kinetic 94 | . 94 . Thermal 23 | . . 23 Explosive 1547 | . 882 665 Electromagnetic 94 | . 94 . Impact . | . . . Slashing 44 | . . 44 Piercing . | . . . Highest Corruption 2 | . 2 2 Average Corruption 2 | . 2 2 Corruption Purged . | . . . Corruption Blocked . | . . . Effects 19 | . 9 10 Message Errors 4 | . 3 1 Matter Fused 6 | . 2 4 Heat Flow Errors 2 | . 1 1 Energy Discharges 1 | . . 1 Parts Fused 1 | . 1 . Data Loss (minor) 3 | . 1 2 Data Loss (major) 2 | . 1 1 Overload Shots . | . . . Overflow Damage 41 | . 41 . Projectiles . | . . . Explosions 41 | . 41 . Melee . | . . . Knockbacks . | . . . Impact . | . . . Kinetic . | . . . Secondary . | . . . Self-Inflicted Damage 36 | . 36 . Shots 2 | . 2 . Rammed . | . . . Targets Rammed . | . . . Kicked . | . . . Crushed . | . . . Highest Temperature 100 | . 100 66 Average Temperature 24 | . 24 33 Received Heat Transfer 192 | . 81 111 Siege Activations . | . . . Robots Corrupted . | . . . Combat Hostiles . | . . . Parts Fried . | . . . Impact Corruptions . | . . . Robots Melted . | . . . Combat Hostiles . | . . . Parts Melted . | . . . Heat Transferred 160 | . . 160 Parts Sabotaged . | . . . Parts Stolen . | . . . Parts Stripped . | . . . Power Chain Reactions . | . . . Alert | -11 -10 -10 ------- Run | Yrd Mat Sub Peak Influence 266 | . 266 . Initial . | . . . Average 90 | . 94 . Maximum Alert Level 1 | . 1 . Low Security (%) 89 | 100 89 . Level 1 10 | . 10 . Level 2 . | . . . Level 3 . | . . . Level 4 . | . . . Level 5 . | . . . High Security . | . . . Max Security . | . . . Squads Dispatched 2 | . 2 . Investigation 1 | . 1 . Extermination . | . . . Reinforcement 1 | . 1 . Assault . | . . . Garrison . | . . . Intercept . | . . . Searches Triggered . | . . . Construction Impeded . | . . . Haulers Reinforced . | . . . Active Scanning Responses . | . . . Cargo Convoy Interrupts . | . . . Stealth | -11 -10 -10 --------- Run | Yrd Mat Sub Distress Signals 3 | . 3 . Communications Jammed . | . . . Distress Signals . | . . . Times Spotted 19 | . 11 8 Peak Tracking Total 3 | . 3 3 Tactical Retreats . | . . . Traps | -11 -10 -10 ------- Run | Yrd Mat Sub Traps Triggered 3 | . 2 1 Indirectly . | . . . Trap Hack Attempts . | . . . Triggered . | . . . Disarmed . | . . . Reprogrammed . | . . . Reused . | . . . Traps Extracted . | . . . Installed . | . . . Triggered . | . . . Machines | -11 -10 -10 ---------- Run | Yrd Mat Sub Machines Disabled . | . . . Max in Single Turn . | . . . Machines Repaired . | . . . Machines Dismantled . | . . . Machines Sabotaged . | . . . Overloaded Fab Kills . | . . . Hacking | -11 -10 -10 --------- Run | Yrd Mat Sub Machines Accessed 1 | . 1 . Terminals . | . . . Fabricators . | . . . Repair Stations 1 | . 1 . Recycling Units . | . . . Scanalyzers . | . . . Garrison Access . | . . . Total Hacks 3 | . 3 . Successful 2 | . 2 . Failed 1 | . 1 . Catastrophic 1 | . 1 . Database Lockouts . | . . . Manual . | . . . Terminals . | . . . Fabricators . | . . . Repair Stations 3 | . 3 . Recycling Units . | . . . Scanalyzers . | . . . Garrison Access . | . . . Terminal Hacks . | . . . Fabricator Hacks . | . . . Repair Station Hacks 2 | . 2 . Scan Component 1 | . 1 . Repair 1 | . 1 . Recycling Unit Hacks . | . . . Scanalyzer . | . . . Garrison Access Hacks . | . . . Unauthorized Hacks . | . . . Terminals . | . . . Fabricators . | . . . Repair Stations . | . . . Recycling Units . | . . . Scanalyzers . | . . . Garrison Access . | . . . Data Cores Recovered . | . . . Used . | . . . Hacking Detections 1 | . 1 . Full Trace Events 1 | . 1 . Feedback Events . | . . . Feedback Blocked . | . . . Robot Schematics Acquired . | . . . Robots Built . | . . . Authchips . | . . . Time . | . . . Total Robot Build Rating . | . . . Part Schematics Acquired . | . . . Parts Built . | . . . Authchips . | . . . Time . | . . . Total Part Build Rating . | . . . Parts Repaired 1 | . 1 . Time 13 | . 13 . Parts Recycled . | . . . Recycled Matter . | . . . Retrieved Matter . | . . . Retrieved Components . | . . . Parts Scanalyzed . | . . . Part Schematics Acquired . | . . . Parts Damaged . | . . . Bothacking | -11 -10 -10 ------------ Run | Yrd Mat Sub Used RIF Installer . | . . . Robots Hacked . | . . . Non-combat . | . . . Combat . | . . . Robot Hacks Applied . | . . . Relay Couplers Released . | . . . Fabnet Peak Effective % . | . . . Robots Rewired . | . . . Allies Hacked . | . . . Hacks Repelled . | . . . Allies | -11 -10 -10 -------- Run | Yrd Mat Sub Total Allies . | . . . Largest Group . | . . . Highest-Rated Group . | . . . Highest-Rated Ally . | . . . Total Orders . | . . . Ally Attacks . | . . . Total Damage . | . . . Kills . | . . . Allies Corrupted . | . . . Allies Melted . | . . . Intel | -11 -10 -10 ------- Run | Yrd Mat Sub Robot Analysis Total . | . . . Derelict Logs Recovered 1 | . . 1 Drone Launches . | . . . Drone Recoveries . | . . . Exploration | -11 -10 -10 ------------- Run | Yrd Mat Sub Turns Passed 2346 | 55 1387 904 Spaces Moved 1218 | 44 728 446 Core 15 | 15 . . Treads . | . . . Legs 1203 | 29 728 446 Wheels . | . . . Hover . | . . . Flight . | . . . Fastest Speed 50 | 50 120 190 Average Speed 178 | 96 175 191 Slowest Speed 260 | 120 190 260 Overloaded Moves . | . . . Propulsion Burnouts . | . . . Robots Hopped . | . . . Cave-ins Triggered . | . . . Exploration Rate (%) 43 | 4 96 30 Regions Visited 2 Branch Regions 1 Pre-discovered Areas 1 | . . 1 Known Exits Taken . | . . . Unknown Exits Taken 2 | 1 1 . Scrap Searched . | . . . Spaces Dug 26 | . . 26 Terrain Destroyed 152 | . 90 62 Melee . | . . . Projectile . | . . . AOE 152 | . 90 62 Terrain Rammed . | . . . Walls Destroyed . | . . . Machines Disabled . | . . . Actions | -11 -10 -10 --------- Run | Yrd Mat Sub Total 1320 | 56 793 471 Wait 13 | . 13 . Move 1216 | 43 727 446 Hop . | . . . Pick Up 23 | 8 11 4 Fast Attach . | . . . Attach 13 | 5 5 3 Detach 2 | . 2 . Swap 10 | . 8 2 Drop 1 | . 1 . Fire 39 | . 26 13 Melee 3 | . . 3 Ram . | . . . Kick . | . . . Crush . | . . . Escape Stasis . | . . . Rewire . | . . . Trap . | . . . Miscellaneous . | . . . Route ------- -11/Scrapyard -10/Materials (discovered 5 exits: [*Mat x3] / [*Min] / [*Sub]) -10/Subcaves History --------- Turn | Location | Event 6 | -11/Scrapyard | Discovered new exit (range 16) 56 | -11/Scrapyard | Entered Materials 291 | -10/Materials | Discovered new exit (range 9) 311 | -10/Materials | Build established: Mutant 486 | -10/Materials | Discovered new exit (range 12) 710 | -10/Materials | Discovered new exit (range 16) 1079 | -10/Materials | Discovered new exit (range 9) 1337 | -10/Materials | Discovered new exit (range 9) 1397 | -10/Materials | Repaired Grenade Launcher 1443 | -10/Materials | Entered Subcaves 1752 | -10/Subcaves | Learned location of Zion (-7) 1752 | -10/Subcaves | Met a Zionite searching for "candidates" 1938 | -10/Subcaves | Shifting Twisted Machinery released Mak. Axe 1953 | -10/Subcaves | Core integrity fell below 50% 2005 | -10/Subcaves | Shifting Twisted Machinery released Sub. Machine Gun 2230 | -10/Subcaves | Shifting Twisted Machinery released Sub. Laser 2247 | -10/Subcaves | A swath of the cavern ceiling suddenly collapsed 2283 | -10/Subcaves | Core integrity fell below 20% 2303 | -10/Subcaves | Learned 4 Materials zone layouts 2308 | -10/Subcaves | Shifting Twisted Machinery released Flamer 2347 | -10/Subcaves | Destroyed by W3-96B(R) with Subdweller Laser Last Messages --------------- destroying it. The unstable cave ceiling collapses. Acquired 4 matter. System corrupted: Substantial component data lost. Sub. Laser falls loose from the Twisted Machinery. A swath of the cavern ceiling suddenly collapses. 3QQLIV Q,CXTYMCVV1HO4 Acquired 22 matter. Triggered Shrapnel Trap. An expanding cloud of shrapnel blasts out in all directions. Acquired derelict log, extracted data. Data stored: Materials zone layouts (x4). Flamer falls loose from the Twisted Machinery. Acquired Flamer. Flamer destroyed. Lgt. Ion Engine destroyed. Map ----- +----------------------------------------------------+ | ?????????????????????????????????????????????????? | | ?????????????????????????????????????????????????? | | ?????????????????????????????????????????????????? | | ?????????????????????????????????????????????????? | | ?????????????????????????????????????????????????? | | ?????????????????????????????????????????????????? | | ?????????????????????????????????????????????????? | | ?????????????????????????????????????????????????? | | ?????????????????????????????????????????????????? | | ?????????????????????????????????????????????????? | | ?????????????????????????????????????????????????? | | ????????????????????????????? ???????????????????? | | ???????????????????????????# ???????????????????? | | ?????????????????????????## ???????????????????? | | ????????????????????????? ????????????????? | | ????????????????????????? " ?????????????????? | | ????????????????????????? " ?????????????????? | | ?????????????????????????# "" ??????????????????? | | ?????????????????????????# " ???????????????????? | | ????????????????????????? "#??????"????????????? | | ?????????????????????????# ?????#"?"???????????? | | ?????????????????????????# ?????# """???????????? | | ?????????????????????????# #??### """#??????????? | | ???????????# ????#?## #### """ #??????????? | | ???????????# # # """"" #???????????? | | ??????????# R @ """"""""##??????????? | | ??????????????# """R " "" """ "#??????????? | | ??????????????# #"""" "" " " " # #????????? | | ??????????????# ####""""""""" " ?????? | | ????????????????????#"""""""""" ## ?????? | | ???????????????????? """""""#### ##?????????????? | | ?????????????????????? #####?#" ##????????????? | | ??????????????????????????????#" ###??????????? | | ??????????????????????????????## ##?????????? | | ??????????????????????????????## #?????????? | | ????????????????????????????"?#"""## #?????????? | | ?????????????????????????# %""##"""## #?????????? | | ???????????????????????? " ##????????? | | ?????????????????????????# """"""" #????????? | | ?????????????????????????#%" " " #????????? | | ?????????????????????????""" " ### #????????? | | ?????????????????????????""" " ##" ####????????? | | ???????????????????????????# ""#"" ##???????????? | | ???????????????????????????# # ##????????????? | | ???????????????????????????# " "#????#???????? | | ???????????????????????????## " #### ## ? | | ???????????????????????????# "# ? | | ???????????????????????????## #???? | | ???????????????????????????#^ #???? | | ???????????????????????????## ^ "# ##???? | +----------------------------------------------------+ Best States ------------- Heat Dissipation 25 Coolant Potential 50 Energy Generation 10 Energy Capacity 125 Matter Stores 300 Matter Capacity 300 Sight Range 16 Terrain Scan Density 10 Evasion (%) 55 Targeting Accuracy 5 Item Schematics ----------------- None Robot Schematics ------------------ None Fabricated ------------ Nothing Alien Tech Used ----------------- None Achievements -------------- None Challenges ------------ None Game ------ Seed CoordinationCryofiberMinigun Manual? 0 Play Time 00:11:14 Cumulative 4.1 hours Start 2024.12.02 @ 21:02:56 End 2024.12.02 @ 21:13:40 Sessions 1 Manual Loads 0 Difficulty Rogue Special Mode None Game No. 11 Rogue 11 Adventurer 0 Explorer 0 Win Type - Total 0 Types 0/0/0/0/0/0/0/0/0 Lore% 2 Gallery% 10 Achievement% 11 Wizard Run 0 Options --------- Layout 1 ASCII 0 Keyboard 0 Movement Mouse Keybinds 0 Fullscreen 2 Font 32/Tamsyn Map View 50x35 Zoom Use 0% Tactical HUD 0 Map Filters NONE Filters NONE Steam 1 RUN: 8aa8c7c0-76b9-4c0c-83f6-c5891fc11176